bitfinex-derivatives/quotes_SOLF0:USTF0_20220109
["timestamp","ask_amount","ask_price","bid_price","bid_amount"]
[1641729504165,27.66479,140.35,140.28,2.69867076]
[1641729504364,27.66479,140.35,140.29,1.13731606]
[1641729505766,27.66479,140.35,140.3,2.69867076]
[1641729506366,27.66479,140.35,140.31,1.13731606]
[1641729507767,27.66479,140.35,140.28,15.11328861]
[1641729507768,27.66479,140.35,140.29,1.13731606]
[1641729507968,35.55179,140.35,140.29,1.13731606]
[1641729508669,35.55179,140.35,140.3,2.69424401]
[1641729509068,35.55179,140.35,140.31,1.13731606]
[1641729509468,7.887,140.35,140.31,1.13731606]
[1641729509669,119.43067382,140.38,140.31,8.87631606]
[1641729510168,119.43067382,140.38,140.32,2.69424401]
[1641729510371,119.43067382,140.38,140.32,3.83156007]
[1641729510771,119.43067382,140.38,140.33,1.13731606]
[1641729511370,119.43067382,140.38,140.33,3.83156007]
[1641729511771,119.43067382,140.38,140.33,2.69424401]
[1641729511970,119.43067382,140.38,140.3,15.11328861]
[1641729512171,131.19767382,140.38,140.3,15.11328861]
[1641729512370,27.66479,140.36,140.3,15.11328861]
[1641729512571,27.66479,140.36,140.31,1.13672272]
[1641729513873,27.66479,140.36,140.3,1.13672272]
[1641729514272,55.32958,140.36,140.3,1.13672272]
[1641729515074,55.32958,140.36,140.31,2.69516152]
[1641729515977,55.32958,140.36,140.3,2.69516152]
[1641729516175,62.92258,140.36,140.3,2.69516152]
[1641729517177,62.92258,140.36,140.31,1.13680395]
[1641729518180,62.92258,140.36,140.32,2.69516152]
[1641729519181,35.25779,140.36,140.32,2.69516152]
[1641729519380,27.66479,140.36,140.32,2.69516152]
[1641729519581,27.66479,140.36,140.3,28.35587918]
[1641729520181,27.66479,140.36,140.31,1.13643284]
[1641729521184,27.66479,140.36,140.32,2.69516152]
[1641729522586,27.66479,140.36,140.31,15.11328861]
[1641729522788,35.74279,140.36,140.31,15.11328861]
[1641729522986,35.74279,140.36,140.32,1.13627008]
[1641729523888,8.078,140.36,140.32,1.13627008]
[1641729524086,8.078,140.36,140.33,2.69516152]
[1641729524987,8.078,140.36,140.34,1.13602777]
[1641729525188,27.66479,140.38,140.34,1.13602777]
[1641729526288,27.66479,140.38,140.35,2.69516152]
[1641729527487,27.66479,140.38,140.33,15.11328861]
[1641729527688,35.86479,140.38,140.33,15.11328861]
[1641729528189,35.86479,140.38,140.34,1.13583711]
[1641729528690,35.86479,140.38,140.35,2.69516152]
[1641729529991,35.86479,140.38,140.33,15.11328861]
[1641729530691,35.86479,140.38,140.32,15.11328861]
[1641729531195,27.66479,140.38,140.32,19.11328861]
[1641729531396,15.11328861,140.43,140.33,1.13599972]
[1641729531597,15.11328861,140.43,140.33,50.78629972]
[1641729531796,17.447303,140.42,140.33,50.78629972]
[1641729532196,17.447303,140.42,140.34,17.80845013]
[1641729532397,17.447303,140.42,140.34,18.94444985]
[1641729532599,17.447303,140.42,140.34,22.94444985]
[1641729532797,27.66479,140.43,140.35,1.13599972]
[1641729533299,27.66479,140.43,140.35,18.94444985]
[1641729533698,27.66479,140.43,140.36,1.13599972]
[1641729533899,27.66479,140.43,140.36,8.15399972]
[1641729534101,27.66479,140.43,140.36,25.96244985]
[1641729534700,27.66479,140.43,140.37,1.13599972]
[1641729534902,27.66479,140.43,140.37,3.83116124]
[1641729535506,27.66479,140.43,140.38,2.69516152]
[1641729535704,27.66479,140.43,140.38,3.83116124]
[1641729536104,27.66479,140.43,140.38,2.69516152]
[1641729536304,27.66479,140.43,140.39,2.69516152]
[1641729537106,27.66479,140.43,140.38,2.69516152]
[1641729537907,61.85889,140.45,140.38,2.69516152]
[1641729538707,17.44547392,140.44,140.38,2.69516152]
[1641729539308,17.44547392,140.44,140.38,6.69516152]
[1641729539508,61.85889,140.45,140.39,1.13453659]
[1641729539709,27.66479,140.45,140.39,1.13453659]
[1641729539909,27.66479,140.47,140.39,5.13453659]
[1641729540109,27.66479,140.47,140.39,13.24053659]
[1641729540613,27.66479,140.47,140.39,12.106]
[1641729540614,17.44517058,140.46,140.39,12.106]
[1641729541816,17.44517058,140.46,140.4,4.0]
[1641729543614,45.10996058,140.47,140.4,4.0]
[1641729544115,17.44517058,140.46,140.4,4.0]
[1641729546721,17.44517058,140.47,140.41,4.0]
[1641729547021,17.44517058,140.47,140.41,11.053]
[1641729547220,17.44517058,140.47,140.42,4.0]
[1641729547621,17.44517058,140.47,140.41,11.053]
[1641729548220,17.44517058,140.47,140.42,4.0]
[1641729548421,17.44517058,140.47,140.42,6.69518382]
[1641729548622,17.44517058,140.47,140.42,2.69518382]
[1641729548922,17.44517058,140.47,140.41,36.3017]
[1641729550025,17.44517058,140.47,140.42,2.69433336]
[1641729551225,17.44517058,140.47,140.41,36.3017]
[1641729551724,17.44517058,140.47,140.41,32.3017]
[1641729551925,17.44517058,140.47,140.43,4.0]
[1641729554027,33.9554,140.48,140.43,4.0]
[1641729557232,33.9554,140.48,140.44,4.0]
[1641729557432,27.66479,140.49,140.44,4.0]
[1641729557833,27.66479,140.51,140.44,4.0]
[1641729558037,60.74509,140.51,140.44,4.0]
[1641729558337,19.781049,140.5,140.44,4.0]
[1641729558735,17.44160756,140.49,140.44,4.0]
[1641729559634,17.44160756,140.5,140.44,4.0]
[1641729560535,2.34029103,140.49,140.44,4.0]
[1641729560737,10.85129103,140.49,140.44,4.0]
[1641729561438,17.44232353,140.48,140.44,4.0]
[1641729561837,8.511,140.49,140.44,4.0]
[1641729562340,17.44244754,140.48,140.44,4.0]
[1641729566743,17.44244754,140.5,140.44,4.0]
[1641729567341,17.44244754,140.5,140.45,4.0]
[1641729567543,17.44244754,140.5,140.45,13.345]
[1641729567743,2.34256348,140.49,140.45,13.345]
[1641729568945,2.34256348,140.5,140.45,13.345]
[1641729569452,17.44166979,140.49,140.45,13.345]
[1641729570849,75.85837861,140.51,140.45,13.345]
[1641729570850,17.44166979,140.5,140.45,13.345]
[1641729571750,17.44166979,140.5,140.48,4.0]
[1641729571951,17.44166979,140.5,140.48,12.517]
[1641729572153,27.66479,140.54,140.49,4.0]
[1641729572353,27.66479,140.54,140.51,4.0]
[1641729572651,27.66479,140.54,140.51,10.32]
[1641729573452,27.66479,140.54,140.53,4.0]
[1641729573652,15.11328861,140.57,140.53,4.0]
[1641729573852,15.11328861,140.57,140.54,4.0]
[1641729574052,15.11328861,140.57,140.54,12.433]
[1641729574253,15.11328861,140.6,140.54,8.433]
[1641729574854,15.11328861,140.6,140.54,12.433]
[1641729575153,2.33719941,140.6,140.54,12.433]
[1641729575354,2.33719941,140.6,140.55,4.04191019]
[1641729575555,2.33719941,140.6,140.55,8.04191019]
[1641729575756,2.33719941,140.6,140.56,4.0]
[1641729575953,27.66479,140.61,140.56,4.0]
[1641729577456,27.66479,140.61,140.57,4.0]
[1641729577654,27.66479,140.61,140.57,12.405]
[1641729577855,27.66479,140.61,140.57,8.405]
[1641729578055,27.66479,140.63,140.59,4.0]
[1641729578258,27.66479,140.63,140.58,1.776]
[1641729578457,27.66479,140.63,140.59,4.0]
[1641729578857,27.66479,140.63,140.6,4.0]
[1641729579158,27.66479,140.63,140.6,12.008]
[1641729579658,27.66479,140.63,140.6,8.008]
[1641729584666,27.66479,140.63,140.57,36.06979]
[1641729584865,27.66479,140.63,140.57,12.405]
[1641729585765,27.66479,140.63,140.58,4.0]
[1641729585964,27.66479,140.63,140.58,8.04107821]
[1641729586366,27.66479,140.63,140.58,4.0]
[1641729587768,27.66479,140.63,140.59,4.04081548]
[1641729587969,33.65,140.67,140.59,8.04081548]
[1641729588269,15.11328861,140.71,140.61,4.0]
[1641729588470,50.37758861,140.71,140.62,35.7109]
[1641729588669,35.2643,140.71,140.62,35.7109]
[1641729588871,35.2643,140.71,140.63,27.66479]
[1641729591871,4.0,140.69,140.6,7.10934167]
[1641729592071,4.0,140.68,140.59,35.3879]
[1641729592471,4.0,140.69,140.59,35.3879]
[1641729592872,27.66479,140.68,140.59,35.3879]
[1641729594571,27.66479,140.68,140.6,4.04038515]
[1641729594771,27.66479,140.68,140.6,10.79138515]
[1641729594972,27.66479,140.68,140.6,38.45617515]
[1641729595372,27.66479,140.68,140.61,4.04038515]
[1641729596374,27.66479,140.68,140.6,34.41579]
[1641729596975,59.32958,140.68,140.6,34.41579]
[1641729597273,55.32958,140.68,140.6,34.41579]
[1641729598774,59.32958,140.68,140.6,34.41579]
[1641729598975,4.0,140.64,140.55,1.776]
[1641729599175,4.0,140.63,140.52,1.778]
[1641729599374,34.708,140.62,140.52,33.894]
[1641729599574,38.708,140.62,140.52,33.894]
[1641729599774,34.708,140.62,140.53,4.04189145]
[1641729599975,34.708,140.62,140.53,12.20389145]
[1641729600477,34.708,140.62,140.54,4.04189145]
[1641729600674,22.22743509,140.66,140.54,4.04189145]
[1641729600875,15.11328861,140.64,140.56,27.66479]
[1641729601074,15.11328861,140.64,140.56,37.01879]
[1641729601475,2.33516986,140.64,140.56,37.01879]
[1641729601677,2.33516986,140.64,140.57,4.04189145]
[1641729602878,60.71379,140.65,140.58,1.778]
[1641729603678,60.71379,140.65,140.59,4.04189145]
[1641729603978,60.71379,140.65,140.59,13.05189145]
[1641729604378,2.33747584,140.64,140.59,9.01]
[1641729605787,2.33747584,140.64,140.57,33.6946]
[1641729606387,2.33747584,140.64,140.58,4.0409026]
[1641729607086,2.33747584,140.64,140.57,4.0409026]
[1641729607788,21.45076445,140.64,140.57,4.0409026]
[1641729607987,21.45076445,140.64,140.55,4.0409026]
[1641729608488,30.43276445,140.64,140.55,4.0409026]
[1641729608887,27.66479,140.6,140.56,2.69484053]
[1641729609487,2.33747584,140.59,140.53,15.11328861]
[1641729609688,2.33747584,140.59,140.52,33.1175]
[1641729610295,2.33747584,140.59,140.53,4.04190358]
[1641729610490,2.33747584,140.59,140.53,14.8163484]
[1641729611090,27.66479,140.6,140.54,6.7353484]
[1641729611489,27.66479,140.6,140.55,4.04190358]
[1641729612090,27.66479,140.6,140.52,33.1175]
[1641729612792,27.66479,140.6,140.53,4.04209409]
[1641729613494,27.66479,140.6,140.53,11.34909409]
[1641729614096,27.66479,140.6,140.54,4.04209409]
[1641729614996,27.66479,140.6,140.53,4.04209409]
[1641729615197,27.66479,140.6,140.55,4.04209409]
[1641729615599,27.66479,140.6,140.54,4.04209409]
[1641729615999,31.66479,140.6,140.54,4.04209409]
[1641729616399,31.66479,140.6,140.53,4.04209409]
[1641729616902,31.66479,140.6,140.52,33.1175]
[1641729617901,31.66479,140.6,140.53,4.04233912]
[1641729618102,27.66479,140.6,140.53,4.04233912]
[1641729618501,27.66479,140.6,140.53,10.45333912]
[1641729618902,27.66479,140.6,140.54,4.04233912]
[1641729619303,15.11328861,140.62,140.54,11.15471465]
[1641729619903,15.11328861,140.66,140.56,7.11136396]
[1641729620101,15.11328861,140.66,140.57,1.776]
[1641729620302,15.11328861,140.66,140.57,5.81833912]
[1641729620702,15.11328861,140.66,140.58,4.04233912]
[1641729620903,2.33505723,140.66,140.58,6.73223505]
[1641729621303,2.33505723,140.66,140.58,2.68989593]
[1641729621703,2.33505723,140.66,140.59,4.04233912]
[1641729622106,2.33505723,140.66,140.57,61.15659]
[1641729622303,6.33505723,140.66,140.57,61.15659]
[1641729622706,21.44834584,140.66,140.58,4.04088232]
[1641729622905,17.44834584,140.66,140.58,4.04088232]
[1641729623807,17.44834584,140.66,140.61,4.0]
[1641729624007,17.44834584,140.66,140.61,9.708]
[1641729624206,15.11328861,140.69,140.61,9.708]
[1641729624408,15.11328861,140.69,140.62,1.776]
[1641729624611,15.11328861,140.69,140.62,4.04088232]
[1641729625108,15.11328861,140.69,140.62,31.70567232]
[1641729625308,30.00006381,140.71,140.63,2.69067098]
[1641729625909,30.00006381,140.71,140.64,4.04088232]
[1641729626110,30.00006381,140.71,140.64,10.33588232]
[1641729626310,27.66479,140.71,140.64,10.33588232]
[1641729627009,27.66479,140.71,140.65,4.04088232]
[1641729630110,27.66479,140.71,140.64,6.295]
[1641729630914,27.66479,140.71,140.65,4.03908983]
[1641729631112,4.0,140.7,140.65,4.03908983]
[1641729631312,4.0,140.69,140.65,4.03908983]
[1641729631512,2.32898945,140.69,140.62,32.414]
[1641729632312,59.32958,140.71,140.62,32.414]
[1641729632515,55.32958,140.71,140.62,32.414]
[1641729632713,59.32958,140.71,140.63,4.03955318]
[1641729633714,4.0,140.7,140.63,4.03955318]
[1641729633917,4.0,140.7,140.62,32.414]
[1641729634114,59.32958,140.71,140.62,32.414]
[1641729634316,55.32958,140.71,140.62,32.414]
[1641729634516,55.32958,140.71,140.63,4.03963336]
[1641729635518,59.32958,140.71,140.63,4.03963336]
[1641729636120,55.32958,140.71,140.63,4.03963336]
[1641729637224,59.32958,140.71,140.63,4.03963336]
[1641729637823,55.32958,140.71,140.63,4.03963336]
[1641729639225,59.32958,140.71,140.63,4.03963336]
[1641729639723,59.32958,140.71,140.62,32.414]
[1641729639924,67.17058,140.71,140.62,32.414]
[1641729640126,4.0,140.68,140.62,32.414]
[1641729640324,4.0,140.69,140.62,32.414]
[1641729640527,6.32803686,140.7,140.62,32.414]
[1641729640724,4.0,140.69,140.62,32.414]
[1641729640927,2.32803686,140.7,140.62,32.414]
[1641729641426,2.32803686,140.7,140.62,41.204]
[1641729641626,55.32958,140.71,140.63,4.03961357]
[1641729642426,55.32958,140.71,140.63,8.03961357]
[1641729642627,55.32958,140.71,140.63,9.81561357]
[1641729643228,55.32958,140.71,140.66,7.1063104]
[1641729643426,55.32958,140.71,140.66,14.7043104]
[1641729643827,55.32958,140.71,140.67,4.03961357]
[1641729645627,34.2229,140.75,140.67,4.03961357]
[1641729645829,34.2229,140.75,140.67,38.50811357]
[1641729646428,34.2229,140.75,140.68,4.03961357]
[1641729647228,61.88769,140.75,140.68,4.03961357]
[1641729648530,2.33284326,140.74,140.68,4.03961357]
[1641729650930,6.33284326,140.74,140.67,34.4685]
[1641729651134,27.66479,140.71,140.67,34.4685]
[1641729651335,27.66479,140.71,140.66,7.1063104]
[1641729651831,27.66479,140.71,140.64,15.11328861]
[1641729652031,27.66479,140.71,140.63,49.88590433]
[1641729652733,27.66479,140.71,140.64,6.72988076]
[1641729652934,27.66479,140.71,140.64,13.14688076]
[1641729653432,27.66479,140.71,140.64,10.45585065]
[1641729653633,27.66479,140.71,140.65,4.03885065]
[1641729654234,27.66479,140.71,140.66,2.69215925]
[1641729654834,4.0,140.69,140.66,2.69215925]
[1641729655034,4.0,140.69,140.62,15.11328861]
[1641729655235,27.66479,140.65,140.61,15.11328861]
[1641729655836,27.66479,140.65,140.61,22.22187222]
[1641729656037,27.66479,140.65,140.61,7.10858361]
[1641729656236,27.66479,140.65,140.62,4.03938521]
[1641729656437,27.66479,140.65,140.62,13.01138521]
[1641729656636,50.80348861,140.7,140.63,4.0]
[1641729656837,50.80348861,140.7,140.64,1.776]
[1641729657037,35.6902,140.7,140.64,5.81538521]
[1641729657435,35.6902,140.7,140.65,4.03938521]
[1641729657638,27.66479,140.71,140.65,11.98038521]
[1641729658338,27.66479,140.71,140.66,4.03938521]
[1641729659138,50.07778861,140.73,140.66,31.70417521]
[1641729659739,50.07778861,140.73,140.67,4.03938521]
[1641729659939,34.9645,140.73,140.67,4.03938521]
[1641729660240,34.9645,140.73,140.66,4.0]
[1641729661241,34.9645,140.73,140.67,4.03848263]
[1641729662745,15.11328861,140.74,140.67,4.03848263]
[1641729663045,15.11328861,140.74,140.67,8.03848263]
[1641729663247,15.11328861,140.74,140.7,27.66479]
[1641729663547,15.11328861,140.74,140.7,33.80179]
[1641729664246,15.11328861,140.75,140.7,33.80179]
[1641729665048,34.7006,140.76,140.7,33.80179]
[1641729665247,15.11328861,140.77,140.7,61.46658]
[1641729665448,15.11328861,140.77,140.71,4.0]
[1641729665951,39.9678159,140.81,140.76,4.0]
[1641729666147,15.07585102,140.78,140.76,18.55075978]
[1641729666348,39.9678159,140.81,140.77,4.0]
[1641729666549,39.9678159,140.81,140.78,4.0]
[1641729667047,39.9678159,140.81,140.79,4.03589729]
[1641729667650,27.66479,140.84,140.77,27.66479]
[1641729667651,31.66479,140.84,140.77,27.66479]
[1641729667848,27.66479,140.84,140.77,27.66479]
[1641729668451,4.0,140.83,140.75,27.66479]
[1641729668651,37.2327,140.83,140.75,27.66479]
[1641729668949,33.2327,140.83,140.75,27.66479]
[1641729669549,33.2327,140.83,140.76,4.03576012]
[1641729669749,33.2327,140.83,140.76,13.27376012]
[1641729670551,33.2327,140.83,140.77,4.03576012]
[1641729670751,33.2327,140.83,140.76,9.238]
[1641729672152,33.2327,140.83,140.77,4.03538806]
[1641729673254,33.2327,140.83,140.77,31.70017806]
[1641729673954,33.2327,140.83,140.78,4.03538806]
[1641729674155,27.66479,140.84,140.78,4.03538806]
[1641729677959,27.66479,140.84,140.78,8.03538806]
[1641729678361,27.66479,140.84,140.78,4.03538806]
[1641729678662,10.88,140.91,140.78,8.03538806]
[1641729679060,10.88,140.91,140.79,4.03538806]
[1641729679260,10.88,140.91,140.79,12.82938806]
[1641729679460,35.5546,140.9,140.79,46.07848806]
[1641729679662,63.21939,140.9,140.81,27.66479]
[1641729680564,63.21939,140.9,140.79,42.0431]
[1641729681162,63.21939,140.9,140.79,47.72510232]
[1641729681366,63.21939,140.9,140.8,4.03475701]
[1641729681562,63.21939,140.9,140.8,31.69954701]
[1641729682163,63.21939,140.9,140.81,4.03475701]
[1641729682562,63.21939,140.9,140.8,27.66479]
[1641729684966,67.21939,140.9,140.8,27.66479]
[1641729685566,27.66479,140.87,140.79,7.09924748]
[1641729685766,31.66479,140.87,140.79,7.09924748]
[1641729686368,27.66479,140.87,140.79,7.09924748]
[1641729686767,63.21939,140.9,140.81,4.0]
[1641729686968,63.21939,140.9,140.81,12.525]
[1641729687568,90.88418,140.9,140.81,12.525]
[1641729689670,94.88418,140.9,140.81,4.0]
[1641729689970,4.0,140.85,140.75,12.78521677]
[1641729690170,4.0,140.85,140.74,35.3206]
[1641729690371,7.10277719,140.88,140.76,4.03561883]
[1641729690570,11.10277719,140.88,140.76,4.03561883]
[1641729690770,7.10277719,140.88,140.76,5.992]
[1641729690970,4.0,140.88,140.76,5.992]
[1641729691369,13.53211579,140.89,140.77,4.03561883]
[1641729691570,27.66479,140.85,140.77,31.70040883]
[1641729691970,27.66479,140.85,140.78,4.0]
[1641729692172,9.53211579,140.89,140.78,11.13562238]
[1641729692371,9.53211579,140.89,140.8,5.68165994]
[1641729692570,63.21939,140.9,140.8,14.63365994]
[1641729692770,63.21939,140.9,140.8,8.952]
[1641729693171,63.21939,140.9,140.81,8.03561883]
[1641729693670,63.21939,140.9,140.83,27.66479]
[1641729693871,63.21939,140.9,140.83,35.22579]
[1641729695873,2.33385228,140.89,140.83,35.22579]
[1641729697374,17.41182328,140.89,140.83,35.22579]
[1641729697976,2.33385228,140.89,140.83,35.22579]
[1641729699679,2.33385228,140.89,140.83,39.22579]
[1641729699881,2.33385228,140.89,140.83,66.89058]
[1641729700179,2.33385228,140.89,140.83,72.57108715]
[1641729700379,2.33385228,140.89,140.83,68.57108715]
[1641729700678,2.33385228,140.89,140.84,4.03364227]
[1641729700877,2.33385228,140.89,140.84,6.72515997]
[1641729701379,2.33385228,140.89,140.84,2.6915177]
[1641729701580,17.41182328,140.91,140.83,72.57108715]
[1641729702279,17.41182328,140.91,140.84,2.69252858]
[1641729702483,17.41182328,140.91,140.84,6.72617115]
[1641729702681,17.41182328,140.91,140.84,10.72617115]
[1641729702980,17.41182328,140.91,140.84,8.03364257]
[1641729703180,17.41182328,140.91,140.84,4.0]
[1641729703381,17.41182328,140.91,140.83,78.2516358]
[1641729703781,17.41182328,140.91,140.84,4.03364213]
[1641729705483,17.41182328,140.91,140.8,24.029971]
[1641729705683,17.41182328,140.91,140.8,29.71176116]
[1641729705883,15.077971,140.89,140.83,27.66479]
[1641729706083,15.077971,140.89,140.83,33.46379]
[1641729706486,15.077971,140.9,140.83,33.46379]
[1641729709790,15.077971,140.9,140.83,37.46379]
[1641729709993,15.077971,140.9,140.83,39.14401485]
[1641729710195,17.41182328,140.91,140.83,43.14401485]
[1641729710392,17.41182328,140.91,140.83,39.14401485]
[1641729711092,17.41182328,140.91,140.84,4.03365718]
[1641729712395,17.41182328,140.91,140.83,39.14401485]
[1641729712595,17.41182328,140.91,140.83,43.14401485]
[1641729712797,17.41182328,140.91,140.83,39.14401485]
[1641729712995,17.41182328,140.91,140.84,4.03355339]
[1641729713396,17.41182328,140.91,140.84,6.72548025]
[1641729713996,17.41182328,140.91,140.84,2.69192686]
[1641729714196,17.41182328,140.91,140.83,27.66479]
[1641729714598,17.41182328,140.91,140.84,4.03370888]
[1641729714796,17.41182328,140.91,140.84,13.32870888]
[1641729714998,17.41182328,140.91,140.84,16.02087647]
[1641729715600,2.33385228,140.91,140.84,9.295]
[1641729716803,17.41182328,140.91,140.84,9.295]
[1641729717303,17.41182328,140.91,140.85,4.03339061]
[1641729717706,2.33385228,140.91,140.85,2.69283193]
[1641729718505,2.33385228,140.91,140.84,43.218]
[1641729718705,17.41182328,140.91,140.84,43.218]
[1641729719607,17.41182328,140.91,140.85,4.03348019]
[1641729720010,2.33385228,140.91,140.85,6.72621316]
[1641729720611,2.33385228,140.91,140.85,2.69273297]
[1641729720810,2.33385228,140.91,140.84,44.992]
[1641729721010,2.33385228,140.91,140.84,43.218]
[1641729721212,17.41182328,140.91,140.84,43.218]
[1641729722012,15.077971,140.9,140.85,2.69585382]
[1641729723818,17.41182328,140.91,140.85,2.69585382]
[1641729725025,15.077971,140.9,140.85,2.69585382]
[1641729726426,17.41182328,140.91,140.85,2.69585382]
[1641729728529,15.077971,140.9,140.85,2.69585382]
[1641729729133,17.41182328,140.91,140.85,2.69585382]
[1641729729430,21.41182328,140.91,140.85,2.69585382]
[1641729729829,21.41182328,140.91,140.83,27.66479]
[1641729730030,15.077971,140.88,140.83,27.66479]
[1641729730230,15.077971,140.88,140.81,27.66479]
[1641729730730,19.077971,140.88,140.81,27.66479]
[1641729730932,19.077971,140.88,140.8,15.077971]
[1641729731133,48.374571,140.87,140.82,2.69752502]
[1641729731632,52.374571,140.87,140.82,2.69752502]
[1641729732132,52.374571,140.87,140.79,2.69752502]
[1641729732133,17.41182328,140.86,140.79,2.69752502]
[1641729732332,23.50882328,140.86,140.79,2.69752502]
[1641729732533,4.0,140.84,140.79,2.502e-05]
[1641729732733,4.0,140.83,140.77,15.077971]
[1641729732933,11.918,140.83,140.74,15.077971]
[1641729733134,4.0,140.82,140.74,15.077971]
[1641729733333,4.0,140.81,140.74,15.077971]
[1641729734234,27.66479,140.79,140.72,15.077971]
[1641729734533,36.55479,140.79,140.72,15.077971]
[1641729734733,36.55479,140.79,140.73,4.03659261]
[1641729734936,40.55479,140.79,140.73,4.03659261]
[1641729735134,36.55479,140.79,140.73,4.03659261]
[1641729736034,36.55479,140.79,140.7,4.03659261]
[1641729736436,36.55479,140.79,140.7,5.81259261]
[1641729736835,36.55479,140.79,140.71,4.03659261]
[1641729737538,4.0,140.78,140.71,4.03659261]
[1641729738337,27.66479,140.76,140.69,4.03659261]
[1641729738635,27.66479,140.76,140.68,4.03659261]
[1641729738837,27.66479,140.76,140.68,5.81259261]
[1641729739336,27.66479,140.76,140.68,4.03659261]
[1641729739537,33.68479,140.76,140.68,4.03659261]
[1641729739841,33.68479,140.76,140.69,4.03659261]
[1641729740037,33.68479,140.76,140.69,14.31259261]
[1641729740237,35.3052,140.8,140.73,27.66479]
[1641729740437,35.3052,140.8,140.73,35.32979]
[1641729741037,35.3052,140.8,140.74,4.03659261]
[1641729744147,35.3052,140.8,140.73,27.66479]
[1641729744346,62.96999,140.8,140.73,27.66479]
[1641729746448,62.96999,140.8,140.7,34.5661]
[1641729746647,4.0,140.79,140.68,1.776]
[1641729746847,4.0,140.77,140.71,4.0370694]
[1641729747047,4.0,140.75,140.67,27.66479]
[1641729747248,4.0,140.74,140.63,15.077971]
[1641729747447,4.0,140.72,140.63,15.077971]
[1641729748049,4.0,140.72,140.62,7.10833096]
[1641729748348,31.66479,140.72,140.64,27.66479]
[1641729748550,27.66479,140.72,140.64,27.66479]
[1641729749750,31.66479,140.72,140.64,27.66479]
[1641729749950,27.66479,140.72,140.64,27.66479]
[1641729751352,68.3029,140.76,140.65,4.0]
[1641729751550,68.3029,140.76,140.66,8.88205791]
[1641729752351,68.3029,140.76,140.67,27.66479]
[1641729753153,35.3068,140.76,140.67,27.66479]
[1641729754256,4.0,140.74,140.67,27.66479]
[1641729754460,27.66479,140.72,140.64,27.66479]
[1641729754657,27.66479,140.72,140.64,31.66479]
[1641729755055,27.66479,140.72,140.64,27.66479]
[1641729756360,27.66479,140.72,140.67,27.66479]
[1641729759869,27.66479,140.72,140.64,27.66479]
[1641729760066,36.13479,140.72,140.64,27.66479]
[1641729761371,4.0,140.69,140.62,49.85083933]
[1641729761766,4.0,140.69,140.62,15.077971]
[1641729762368,27.66479,140.66,140.62,15.077971]
[1641729762570,27.66479,140.66,140.63,4.03939929]
[1641729762969,31.66479,140.66,140.63,4.03939929]
[1641729763170,31.66479,140.66,140.61,4.03939929]
[1641729763969,27.66479,140.66,140.59,4.03939929]
[1641729765169,35.0417,140.71,140.59,11.14924643]
[1641729765669,35.0417,140.71,140.6,4.03939929]
[1641729765869,35.0417,140.71,140.61,33.2627]
[1641729766070,39.0417,140.71,140.61,33.2627]
[1641729766271,4.0,140.69,140.61,33.2627]
[1641729766473,27.66479,140.68,140.6,4.03939929]
[1641729766672,27.66479,140.68,140.62,4.03939929]
[1641729767073,27.66479,140.68,140.6,4.03939929]
[1641729767274,33.2555,140.67,140.6,4.03939929]
[1641729767877,4.0,140.66,140.6,4.03939929]
[1641729768076,37.2555,140.67,140.6,4.03939929]
[1641729768477,27.66479,140.65,140.6,4.03939929]
[1641729768677,27.66479,140.65,140.59,4.03939929]
[1641729769079,27.66479,140.65,140.58,4.03939929]
[1641729770280,33.2555,140.67,140.58,4.03939929]
[1641729770482,27.66479,140.71,140.61,27.66479]
[1641729770680,32.8208,140.71,140.62,1.776]
[1641729770880,32.8208,140.71,140.61,63.62879]
[1641729771081,32.8208,140.71,140.61,61.85279]
[1641729771282,32.8208,140.71,140.63,4.03939929]
[1641729771685,32.8208,140.71,140.62,4.03939929]
[1641729771881,4.0,140.7,140.62,4.03939929]
[1641729772381,32.8208,140.71,140.62,4.03939929]
[1641729773482,4.0,140.7,140.62,4.03939929]
[1641729773681,4.0,140.7,140.63,2.6861314]